[Event "FIDE Women World Rapid 2024"]
[Site "New York"]
[Date "2024.12.27"]
[Round "7.23"]
[White "Kurmangaliyeva, Liya"]
[Black "Narva, Mai"]
[Result "1/2-1/2"]
[ECO "C54"]
[WhiteElo "2266"]
[BlackElo "2413"]
[Annotator "ChessBase"]
[PlyCount "85"]
[EventDate "2024.12.14"]
[EventType "swiss"]
[EventCountry "USA"]
[SourceTitle "playchess.com"]
[Source "ChessBase"]
[SourceQuality "1"]
[TimeControl "900+10"]

1. e4 {[%emt 0:00:06]} e5 {[%emt 0:00:02]} 2. Nf3 {[%emt 0:00:03]} Nc6 {[%emt 0:00:03]} 3. Bc4 {[%emt 0:00:02]} Nf6 {[%emt 0:00:04]} 4. d3 {[%emt 0:00:03]} Bc5 {[%emt 0:00:05]} 5. c3 {[%emt 0:00:02]} d6 {[%emt 0:00:14]} 6. Bg5 {[%emt 0:00:04]} h6 {[%emt 0:00:20]} 7. Bh4 {[%emt 0:00:02]} a5 {[%emt 0:00:15]} 8. Nbd2 {[%emt 0:00:22]} O-O {[%emt 0:02:39]} 9. O-O {[%emt 0:00:04]} Ba7 {[%emt 0:01:18]} 10. Re1 {[%emt 0:00:38]} Be6 {[%emt 0:01:39]} 11. Bb5 {[%emt 0:00:15]} g5 {[%emt 0:00:31]} 12. Bg3 {[%emt 0:00:14]} Ne7 {[%emt 0:02:03]} 13. d4 {[%emt 0:00:28]} Ng6 {[%emt 0:00:37]} 14. Bf1 {[%emt 0:04:05]} Bg4 {[%emt 0:01:59]} 15. h3 {[%emt 0:01:58]} Bh5 {[%emt 0:00:26]} 16. Be2 {[%emt 0:03:03]} Bxf3 {[%emt 0:00:41]} 17. Bxf3 {[%emt 0:00:02]} exd4 {[%emt 0:00:15]} 18. Nc4 {[%emt 0:00:17]} dxc3 {[%emt 0:00:33]} 19. bxc3 {[%emt 0:00:02]} Bc5 {[%emt 0:01:38]} 20. e5 {[%emt 0:03:16]} d5 {[%emt 0:00:59]} 21. exf6 {[%emt 0:00:43]} dxc4 {[%emt 0:00:02]} 22. Bxb7 {[%emt 0:00:07]} Ra7 {[%emt 0:00:11]} 23. Qf3 {[%emt 0:00:15]} Qd3 {[%emt 0:00:43]} 24. Rad1 {[%emt 0:00:18]} Qxf3 {[%emt 0:00:02]} 25. Bxf3 {[%emt 0:00:02]} Ra6 {[%emt 0:00:03]} 26. Rd5 {[%emt 0:00:36]} Bd6 {[%emt 0:00:34]} 27. Bxd6 {[%emt 0:00:41]} cxd6 {[%emt 0:00:01]} 28. Red1 {[%emt 0:00:38]} Ne5 {[%emt 0:01:11]} 29. Be2 {[%emt 0:00:04]} Rb8 {[%emt 0:00:10]} 30. Rxd6 {[%emt 0:01:13]} Rxd6 {[%emt 0:00:02]} 31. Rxd6 {[%emt 0:00:01]} Rb2 {[%emt 0:00:17]} 32. Bh5 {[%emt 0:00:04]} Rxa2 {[%emt 0:00:33]} 33. Rd5 {[%emt 0:00:03]} Ng6 {[%emt 0:00:17]} 34. Rc5 {[%emt 0:00:16]} Ra1+ {[%emt 0:00:09]} 35. Kh2 {[%emt 0:00:01]} Ra2 {[%emt 0:00:06]} 36. Kg3 {[%emt 0:00:21]} a4 {[%emt 0:00:15]} 37. Rxc4 {[%emt 0:00:08]} Rc2 {[%emt 0:00:08]} 38. Rxa4 {[%emt 0:00:33]} Rxc3+ {[%emt 0:00:02]} 39. Kh2 {[%emt 0:00:09]} Rc6 {[%emt 0:00:09]} 40. Bxg6 {[%emt 0:00:13]} fxg6 {[%emt 0:00:01]} 41. Ra8+ {[%emt 0:00:02]} Kf7 {[%emt 0:00:06]} 42. Rh8 {[%emt 0:00:03]} h5 {[%emt 0:00:02]} 43. Rh7+ {[%emt 0:00:17]} 1/2-1/2

[Event "FIDE Women World Rapid 2024"]
[Site "New York"]
[Date "2024.12.27"]
[Round "7.23"]
[White "Stanford, Sheila Barth"]
[Black "Berezovska, Svetlana"]
[Result "1-0"]
[ECO "A03"]
[WhiteElo "2198"]
[BlackElo "1857"]
[Annotator "ChessBase"]
[PlyCount "30"]
[EventDate "2024.12.14"]
[EventType "swiss"]
[EventCountry "USA"]
[SourceTitle "playchess.com"]
[Source "ChessBase"]
[SourceQuality "1"]
[TimeControl "900+10"]

1. f4 {[%emt 0:00:02]} d5 {[%emt 0:00:04]} 2. Nf3 {[%emt 0:00:02]} c5 {[%emt 0:00:05]} 3. e3 {[%emt 0:00:03]} Nc6 {[%emt 0:00:03]} 4. Bb5 {[%emt 0:00:03]} Bd7 {[%emt 0:00:08]} 5. O-O {[%emt 0:00:07]} Nf6 {[%emt 0:00:06]} 6. b3 {[%emt 0:00:14]} a6 {[%emt 0:00:46]} 7. Bxc6 {[%emt 0:00:17]} Bxc6 {[%emt 0:00:01]} 8. Ne5 {[%emt 0:00:03]} e6 {[%emt 0:00:28]} 9. d3 {[%emt 0:00:57]} Be7 {[%emt 0:00:34]} 10. Nd2 {[%emt 0:00:22]} O-O {[%emt 0:00:52]} 11. Nxc6 {[%emt 0:00:41]} bxc6 {[%emt 0:00:01]} 12. Bb2 {[%emt 0:00:02]} Qc7 {[%emt 0:03:21]} 13. Qe2 {[%emt 0:01:03]} Rad8 {[%emt 0:00:11]} 14. e4 {[%emt 0:00:14]} d4 {[%emt 0:00:37]} 15. Nc4 {[%emt 0:00:29]} Nd7 {[%emt 0:00:19]} 1-0

[Event "FIDE Women World Rapid 2024"]
[Site "New York"]
[Date "2024.12.27"]
[Round "7.24"]
[White "Lu, Miaoyi"]
[Black "Lyutsinger, Iren"]
[Result "0-1"]
[ECO "B90"]
[WhiteElo "2441"]
[BlackElo "2150"]
[Annotator "ChessBase"]
[PlyCount "80"]
[EventDate "2024.12.14"]
[EventType "swiss"]
[EventCountry "USA"]
[SourceTitle "playchess.com"]
[Source "ChessBase"]
[SourceQuality "1"]
[TimeControl "900+10"]

1. e4 {[%emt 0:00:01]} c5 {[%emt 0:00:01]} 2. Nf3 {[%emt 0:00:01]} d6 {[%emt 0:00:01]} 3. d4 {[%emt 0:00:02]} cxd4 {[%emt 0:00:01]} 4. Nxd4 {[%emt 0:00:02]} Nf6 {[%emt 0:00:02]} 5. Nc3 {[%emt 0:00:01]} a6 {[%emt 0:00:00]} 6. Be3 {[%emt 0:00:03]} e5 {[%emt 0:00:01]} 7. Nf3 {[%emt 0:00:02]} Be7 {[%emt 0:00:29]} 8. Bc4 {[%emt 0:00:03]} O-O {[%emt 0:00:20]} 9. O-O {[%emt 0:00:02]} Be6 {[%emt 0:01:30]} 10. Bb3 {[%emt 0:00:01]} Nc6 {[%emt 0:00:55]} 11. Qe2 {[%emt 0:03:12]} Rc8 {[%emt 0:00:43]} 12. Rfd1 {[%emt 0:00:33]} b5 {[%emt 0:01:09]} 13. h3 {[%emt 0:05:04]} Qc7 {[%emt 0:03:43]} 14. Bg5 {[%emt 0:00:14]} Na5 {[%emt 0:03:30]} 15. Bxf6 {[%emt 0:00:09]} Bxf6 {[%emt 0:00:05]} 16. Nd5 {[%emt 0:00:33]} Qc6 {[%emt 0:03:08]} 17. c3 {[%emt 0:02:30]} Nc4 {[%emt 0:00:33]} 18. Rd3 {[%emt 0:00:57]} Bd8 {[%emt 0:00:47]} 19. g4 {[%emt 0:02:22]} g6 {[%emt 0:00:40]} 20. Kh2 {[%emt 0:00:55]} Kg7 {[%emt 0:00:06]} 21. a4 {[%emt 0:00:29]} Qb7 {[%emt 0:00:15]} 22. axb5 {[%emt 0:00:13]} axb5 {[%emt 0:00:01]} 23. Ne1 {[%emt 0:00:41]} Bg5 {[%emt 0:00:28]} 24. Ng2 {[%emt 0:00:14]} Ra8 {[%emt 0:00:14]} 25. Rxa8 {[%emt 0:00:19]} Rxa8 {[%emt 0:00:06]} 26. Bxc4 {[%emt 0:00:30]} bxc4 {[%emt 0:00:00]} 27. Rd1 {[%emt 0:00:02]} h5 {[%emt 0:00:14]} 28. Nb4 {[%emt 0:00:20]} hxg4 {[%emt 0:00:16]} 29. hxg4 {[%emt 0:00:03]} Rh8+ {[%emt 0:00:12]} 30. Kg1 {[%emt 0:00:01]} Qd7 {[%emt 0:00:10]} 31. Ne3 {[%emt 0:00:17]} Bxe3 {[%emt 0:00:18]} 32. Qxe3 {[%emt 0:00:02]} Bxg4 {[%emt 0:00:03]} 33. f3 {[%emt 0:00:25]} Rh3 {[%emt 0:00:15]} 34. Qg5 {[%emt 0:00:10]} Bxf3 {[%emt 0:00:20]} 35. Qxe5+ {[%emt 0:00:01]} f6 {[%emt 0:00:10]} 36. Qxd6 {[%emt 0:00:24]} Qg4+ {[%emt 0:00:05]} 37. Kf2 {[%emt 0:00:02]} Bxd1 {[%emt 0:00:12]} 38. Qe7+ {[%emt 0:00:06]} Kh6 {[%emt 0:00:01]} 39. Qf8+ {[%emt 0:00:03]} Kh5 {[%emt 0:00:05]} 40. Nd5 {[%emt 0:00:28]} Qf3+ {[%emt 0:00:04]} 0-1

[Event "FIDE Women World Rapid 2024"]
[Site "New York"]
[Date "2024.12.27"]
[Round "7.24"]
[White "Kairbekova, Amina"]
[Black "Guichard, Pauline"]
[Result "1-0"]
[ECO "B12"]
[WhiteElo "2309"]
[BlackElo "2357"]
[Annotator "ChessBase"]
[PlyCount "61"]
[EventDate "2024.12.14"]
[EventType "swiss"]
[EventCountry "USA"]
[SourceTitle "playchess.com"]
[Source "ChessBase"]
[SourceQuality "1"]
[TimeControl "900+10"]

1. e4 {[%emt 0:00:01]} c6 {[%emt 0:00:01]} 2. d4 {[%emt 0:00:02]} d5 {[%emt 0:00:01]} 3. e5 {[%emt 0:00:01]} Bf5 {[%emt 0:00:02]} 4. Nf3 {[%emt 0:00:01]} e6 {[%emt 0:00:02]} 5. Be2 {[%emt 0:00:01]} c5 {[%emt 0:00:02]} 6. Be3 {[%emt 0:00:11]} Qb6 {[%emt 0:00:02]} 7. Nc3 {[%emt 0:00:15]} Nc6 {[%emt 0:00:07]} 8. O-O {[%emt 0:00:27]} Qxb2 {[%emt 0:01:25]} 9. Qe1 {[%emt 0:03:14]} cxd4 {[%emt 0:00:54]} 10. Bxd4 {[%emt 0:00:21]} Nxd4 {[%emt 0:01:28]} 11. Nxd4 {[%emt 0:00:29]} Bb4 {[%emt 0:00:08]} 12. Ndb5 {[%emt 0:00:12]} Ba5 {[%emt 0:00:52]} 13. Rb1 {[%emt 0:00:52]} Qxc2 {[%emt 0:00:21]} 14. Rb3 {[%emt 0:01:27]} Ne7 {[%emt 0:03:51]} 15. Ra3 {[%emt 0:06:39]} Bb6 {[%emt 0:03:37]} 16. Rb3 {[%emt 0:03:03]} Bg6 {[%emt 0:01:21]} 17. g4 {[%emt 0:00:13]} Ba5 {[%emt 0:00:51]} 18. Ra3 {[%emt 0:00:14]} Nc6 {[%emt 0:01:30]} 19. Nd6+ {[%emt 0:00:24]} Kf8 {[%emt 0:00:29]} 20. Nxb7 {[%emt 0:00:10]} Bb4 {[%emt 0:00:39]} 21. Rb3 {[%emt 0:00:02]} d4 {[%emt 0:00:05]} 22. Rxb4 {[%emt 0:00:18]} Nxb4 {[%emt 0:00:33]} 23. Nb5 {[%emt 0:00:02]} Nd5 {[%emt 0:00:02]} 24. Bf3 {[%emt 0:00:14]} d3 {[%emt 0:00:30]} 25. Qa5 {[%emt 0:00:11]} Kg8 {[%emt 0:00:12]} 26. Bxd5 {[%emt 0:00:13]} exd5 {[%emt 0:00:01]} 27. Nc7 {[%emt 0:00:00]} Rc8 {[%emt 0:00:18]} 28. Nxd5 {[%emt 0:00:03]} d2 {[%emt 0:00:04]} 29. Ne7+ {[%emt 0:00:01]} Kf8 {[%emt 0:00:01]} 30. Nxc8 {[%emt 0:00:09]} h5 {[%emt 0:00:13]} 31. Qd8# {[%emt 0:00:15]} 1-0

[Event "FIDE Women World Rapid 2024"]
[Site "New York"]
[Date "2024.12.27"]
[Round "7.25"]
[White "Cori T., Deysi"]
[Black "Tokhirjonova, Gulrukhbegim"]
[Result "1-0"]
[ECO "D00"]
[WhiteElo "2353"]
[BlackElo "2385"]
[Annotator "ChessBase"]
[PlyCount "107"]
[EventDate "2024.12.14"]
[EventType "swiss"]
[EventCountry "USA"]
[SourceTitle "playchess.com"]
[Source "ChessBase"]
[SourceQuality "1"]
[TimeControl "900+10"]

1. d4 {[%emt 0:00:01]} Nf6 {[%emt 0:00:02]} 2. Bg5 {[%emt 0:00:03]} d5 {[%emt 0:00:10]} 3. e3 {[%emt 0:00:07]} Ne4 {[%emt 0:00:25]} 4. Bh4 {[%emt 0:00:03]} c5 {[%emt 0:00:08]} 5. c3 {[%emt 0:00:19]} Qb6 {[%emt 0:00:24]} 6. Qb3 {[%emt 0:02:28]} c4 {[%emt 0:03:17]} 7. Qc2 {[%emt 0:02:10]} g5 {[%emt 0:01:02]} 8. f3 {[%emt 0:01:20]} Bf5 {[%emt 0:02:26]} 9. Bxg5 {[%emt 0:05:33]} Ng3 {[%emt 0:00:06]} 10. e4 {[%emt 0:00:04]} Nxh1 {[%emt 0:00:02]} 11. exf5 {[%emt 0:00:02]} Bh6 {[%emt 0:00:11]} 12. Bh4 {[%emt 0:00:31]} Be3 {[%emt 0:02:32]} 13. Nh3 {[%emt 0:00:21]} Nc6 {[%emt 0:01:09]} 14. Na3 {[%emt 0:01:55]} O-O-O {[%emt 0:01:29]} 15. Bxc4 {[%emt 0:01:18]} Bxd4 {[%emt 0:00:24]} 16. Bb5 {[%emt 0:00:39]} Bc5 {[%emt 0:00:23]} 17. b4 {[%emt 0:00:14]} Be3 {[%emt 0:01:03]} 18. Qe2 {[%emt 0:00:26]} Kb8 {[%emt 0:00:35]} 19. Rd1 {[%emt 0:00:13]} d4 {[%emt 0:00:32]} 20. Bxc6 {[%emt 0:00:07]} Qxc6 {[%emt 0:00:28]} 21. Nc4 {[%emt 0:00:18]} Rc8 {[%emt 0:00:46]} 22. Ne5 {[%emt 0:00:23]} Qxc3+ {[%emt 0:00:09]} 23. Kf1 {[%emt 0:00:01]} f6 {[%emt 0:00:28]} 24. Nd3 {[%emt 0:00:10]} Qc2 {[%emt 0:00:12]} 25. Nc5 {[%emt 0:00:18]} Qxe2+ {[%emt 0:00:02]} 26. Kxe2 {[%emt 0:00:01]} b6 {[%emt 0:00:18]} 27. Ne6 {[%emt 0:01:02]} Rc2+ {[%emt 0:00:42]} 28. Kd3 {[%emt 0:00:00]} Rhc8 {[%emt 0:00:05]} 29. Rxh1 {[%emt 0:00:00]} Rxg2 {[%emt 0:00:02]} 30. Bg3+ {[%emt 0:00:00]} Kb7 {[%emt 0:00:01]} 31. Rd1 {[%emt 0:00:00]} Rxa2 {[%emt 0:00:07]} 32. Nhf4 {[%emt 0:00:00]} Bf2 {[%emt 0:00:25]} 33. Nd5 {[%emt 0:00:00]} Ra3+ {[%emt 0:00:22]} 34. Ke4 {[%emt 0:00:00]} Bxg3 {[%emt 0:00:01]} 35. hxg3 {[%emt 0:00:00]} d3 {[%emt 0:00:02]} 36. Rxd3 {[%emt 0:00:10]} Rc4+ {[%emt 0:00:02]} 37. Ke3 {[%emt 0:00:02]} Rxd3+ {[%emt 0:00:17]} 38. Kxd3 {[%emt 0:00:00]} b5 {[%emt 0:00:10]} 39. Nd4 {[%emt 0:00:51]} a6 {[%emt 0:00:10]} 40. g4 {[%emt 0:00:01]} h6 {[%emt 0:00:01]} 41. Ke3 {[%emt 0:00:33]} a5 {[%emt 0:00:07]} 42. bxa5 {[%emt 0:00:04]} Ka6 {[%emt 0:00:02]} 43. Nc6 {[%emt 0:00:18]} Rc1 {[%emt 0:00:35]} 44. Ndb4+ {[%emt 0:00:08]} Kb7 {[%emt 0:00:04]} 45. a6+ {[%emt 0:00:07]} Kb6 {[%emt 0:00:17]} 46. Nxe7 {[%emt 0:00:07]} Re1+ {[%emt 0:00:05]} 47. Kd4 {[%emt 0:00:04]} Rd1+ {[%emt 0:00:04]} 48. Kc3 {[%emt 0:00:12]} Rf1 {[%emt 0:00:06]} 49. Ned5+ {[%emt 0:00:01]} Ka7 {[%emt 0:00:01]} 50. f4 {[%emt 0:00:08]} Rc1+ {[%emt 0:00:33]} 51. Kd4 {[%emt 0:00:06]} Rc8 {[%emt 0:00:17]} 52. Ke3 {[%emt 0:00:18]} Rc4 {[%emt 0:00:05]} 53. Kd3 {[%emt 0:00:01]} Ka8 {[%emt 0:00:10]} 54. Nb6+ {[%emt 0:00:02]} 1-0

[Event "FIDE Women World Rapid 2024"]
[Site "New York"]
[Date "2024.12.27"]
[Round "7.25"]
[White "Derlich, Sarah Sima"]
[Black "Wu, Rochelle"]
[Result "0-1"]
[ECO "B60"]
[WhiteElo "1861"]
[BlackElo "2237"]
[Annotator "ChessBase"]
[PlyCount "108"]
[EventDate "2024.12.14"]
[EventType "swiss"]
[EventCountry "USA"]
[SourceTitle "playchess.com"]
[Source "ChessBase"]
[SourceQuality "1"]
[TimeControl "900+10"]

1. e4 {[%emt 0:00:02]} c5 {[%emt 0:00:01]} 2. Nf3 {[%emt 0:00:03]} d6 {[%emt 0:00:01]} 3. d4 {[%emt 0:00:02]} cxd4 {[%emt 0:00:02]} 4. Nxd4 {[%emt 0:00:01]} Nf6 {[%emt 0:00:01]} 5. Nc3 {[%emt 0:00:02]} Nc6 {[%emt 0:00:01]} 6. Bg5 {[%emt 0:00:38]} Bd7 {[%emt 0:00:02]} 7. Be2 {[%emt 0:01:30]} Qa5 {[%emt 0:00:46]} 8. Bxf6 {[%emt 0:01:38]} gxf6 {[%emt 0:00:01]} 9. O-O {[%emt 0:01:36]} Bh6 {[%emt 0:00:26]} 10. Nd5 {[%emt 0:00:55]} Rg8 {[%emt 0:03:10]} 11. c3 {[%emt 0:01:38]} a6 {[%emt 0:01:38]} 12. Kh1 {[%emt 0:02:15]} Rc8 {[%emt 0:02:00]} 13. Qb3 {[%emt 0:02:33]} Nxd4 {[%emt 0:00:46]} 14. cxd4 {[%emt 0:00:02]} Qd2 {[%emt 0:00:10]} 15. Bh5 {[%emt 0:00:20]} Qg5 {[%emt 0:01:06]} 16. Nf4 {[%emt 0:02:53]} Rg7 {[%emt 0:01:55]} 17. g3 {[%emt 0:00:03]} Qb5 {[%emt 0:00:53]} 18. Qxb5 {[%emt 0:00:45]} Bxb5 {[%emt 0:00:02]} 19. Rfc1 {[%emt 0:00:04]} Rxc1+ {[%emt 0:00:44]} 20. Rxc1 {[%emt 0:00:01]} e5 {[%emt 0:00:23]} 21. Ne6 {[%emt 0:00:47]} Bxc1 {[%emt 0:00:02]} 22. Nxg7+ {[%emt 0:00:02]} Kf8 {[%emt 0:00:01]} 23. Nf5 {[%emt 0:00:02]} Bxb2 {[%emt 0:00:01]} 24. Nxd6 {[%emt 0:00:25]} Bd3 {[%emt 0:00:38]} 25. dxe5 {[%emt 0:00:49]} Bxe5 {[%emt 0:00:02]} 26. Nxf7 {[%emt 0:00:10]} Bc7 {[%emt 0:00:01]} 27. f3 {[%emt 0:00:10]} Kg7 {[%emt 0:00:00]} 28. e5 {[%emt 0:00:05]} fxe5 {[%emt 0:00:10]} 29. Ng5 {[%emt 0:00:01]} Kh6 {[%emt 0:00:21]} 30. Ne6 {[%emt 0:00:10]} Bb6 {[%emt 0:01:22]} 31. Bg4 {[%emt 0:00:11]} Kg6 {[%emt 0:00:22]} 32. Kg2 {[%emt 0:00:13]} Kf6 {[%emt 0:00:57]} 33. Nf8 {[%emt 0:00:10]} Bd4 {[%emt 0:00:04]} 34. Bc8 {[%emt 0:00:12]} b6 {[%emt 0:00:15]} 35. Nd7+ {[%emt 0:00:09]} Kg7 {[%emt 0:00:28]} 36. Nb8 {[%emt 0:00:10]} a5 {[%emt 0:00:05]} 37. Ba6 {[%emt 0:00:17]} Bc2 {[%emt 0:00:21]} 38. Kf1 {[%emt 0:00:06]} Bd1 {[%emt 0:00:33]} 39. Be2 {[%emt 0:00:14]} Ba4 {[%emt 0:00:01]} 40. Ke1 {[%emt 0:00:11]} Kf6 {[%emt 0:00:09]} 41. Kd2 {[%emt 0:00:04]} Bg1 {[%emt 0:00:03]} 42. h3 {[%emt 0:00:08]} Bf2 {[%emt 0:00:02]} 43. g4 {[%emt 0:00:04]} Kg5 {[%emt 0:00:01]} 44. Bf1 {[%emt 0:00:17]} Kf4 {[%emt 0:00:06]} 45. Na6 {[%emt 0:00:21]} Kxf3 {[%emt 0:00:14]} 46. Nc7 {[%emt 0:00:06]} Bc6 {[%emt 0:00:27]} 47. Ne6 {[%emt 0:00:07]} Be3+ {[%emt 0:00:13]} 48. Ke1 {[%emt 0:00:09]} Bd5 {[%emt 0:00:14]} 49. Nc7 {[%emt 0:00:17]} Bxa2 {[%emt 0:00:08]} 50. Nb5 {[%emt 0:00:03]} e4 {[%emt 0:00:24]} 51. Nd6 {[%emt 0:00:13]} Bf2+ {[%emt 0:00:04]} 52. Kd2 {[%emt 0:00:08]} e3+ {[%emt 0:00:03]} 53. Kd3 {[%emt 0:00:03]} Bb1+ {[%emt 0:00:02]} 54. Kc3 {[%emt 0:00:16]} e2 {[%emt 0:02:08]} 0-1

[Event "FIDE Women World Rapid 2024"]
[Site "New York"]
[Date "2024.12.27"]
[Round "7.26"]
[White "Sargsyan, Anna M."]
[Black "Agrest, Inna"]
[Result "1-0"]
[ECO "C55"]
[WhiteElo "2361"]
[BlackElo "2155"]
[Annotator "ChessBase"]
[PlyCount "113"]
[EventDate "2024.12.14"]
[EventType "swiss"]
[EventCountry "USA"]
[SourceTitle "playchess.com"]
[Source "ChessBase"]
[SourceQuality "1"]
[TimeControl "900+10"]

1. e4 {[%emt 0:00:03]} e5 {[%emt 0:00:01]} 2. Nf3 {[%emt 0:00:02]} Nc6 {[%emt 0:00:04]} 3. Bc4 {[%emt 0:00:03]} Nf6 {[%emt 0:00:02]} 4. d3 {[%emt 0:00:01]} h6 {[%emt 0:00:04]} 5. O-O {[%emt 0:00:07]} d6 {[%emt 0:00:06]} 6. Re1 {[%emt 0:00:09]} g5 {[%emt 0:00:03]} 7. d4 {[%emt 0:00:03]} Bg4 {[%emt 0:01:16]} 8. dxe5 {[%emt 0:00:18]} Nxe5 {[%emt 0:00:27]} 9. Be2 {[%emt 0:00:04]} Bxf3 {[%emt 0:00:40]} 10. Bxf3 {[%emt 0:00:02]} Bg7 {[%emt 0:00:09]} 11. Bd2 {[%emt 0:00:23]} O-O {[%emt 0:00:14]} 12. Bc3 {[%emt 0:00:03]} Nfd7 {[%emt 0:00:54]} 13. Nd2 {[%emt 0:00:11]} b5 {[%emt 0:00:59]} 14. Be2 {[%emt 0:00:13]} Rb8 {[%emt 0:00:12]} 15. a3 {[%emt 0:00:03]} Nc5 {[%emt 0:00:10]} 16. Bd4 {[%emt 0:01:09]} a6 {[%emt 0:00:49]} 17. Rb1 {[%emt 0:00:13]} Ne6 {[%emt 0:00:51]} 18. Bc3 {[%emt 0:00:04]} c5 {[%emt 0:00:31]} 19. Nf1 {[%emt 0:00:10]} Re8 {[%emt 0:05:58]} 20. Ne3 {[%emt 0:00:08]} Nf4 {[%emt 0:00:18]} 21. Nf5 {[%emt 0:00:11]} Bf8 {[%emt 0:00:08]} 22. Bf1 {[%emt 0:00:17]} Qf6 {[%emt 0:00:51]} 23. g3 {[%emt 0:00:36]} Nfg6 {[%emt 0:00:24]} 24. Bg2 {[%emt 0:00:29]} Rbd8 {[%emt 0:00:48]} 25. Ne3 {[%emt 0:00:11]} Ne7 {[%emt 0:00:59]} 26. Qe2 {[%emt 0:00:16]} Qg6 {[%emt 0:00:26]} 27. Rbd1 {[%emt 0:00:06]} N5c6 {[%emt 0:00:50]} 28. f4 {[%emt 0:00:17]} Nd4 {[%emt 0:00:38]} 29. Bxd4 {[%emt 0:00:16]} cxd4 {[%emt 0:00:01]} 30. f5 {[%emt 0:00:07]} Qg7 {[%emt 0:00:26]} 31. Ng4 {[%emt 0:00:06]} Nxf5 {[%emt 0:00:26]} 32. Qf3 {[%emt 0:00:09]} Ne3 {[%emt 0:00:25]} 33. Nf6+ {[%emt 0:00:20]} Kh8 {[%emt 0:00:01]} 34. Nxe8 {[%emt 0:00:02]} Rxe8 {[%emt 0:00:01]} 35. Rd2 {[%emt 0:00:14]} Nc4 {[%emt 0:00:02]} 36. Rf2 {[%emt 0:00:02]} Kg8 {[%emt 0:00:14]} 37. b3 {[%emt 0:00:36]} Ne5 {[%emt 0:00:03]} 38. Qd1 {[%emt 0:00:15]} a5 {[%emt 0:00:16]} 39. Kh1 {[%emt 0:00:01]} Nc6 {[%emt 0:00:11]} 40. e5 {[%emt 0:00:03]} Nxe5 {[%emt 0:00:12]} 41. Qxd4 {[%emt 0:00:01]} Re6 {[%emt 0:00:10]} 42. Ref1 {[%emt 0:00:06]} Be7 {[%emt 0:00:05]} 43. Bd5 {[%emt 0:00:03]} Rf6 {[%emt 0:00:02]} 44. Rxf6 {[%emt 0:00:30]} Bxf6 {[%emt 0:00:01]} 45. Qb6 {[%emt 0:00:01]} Be7 {[%emt 0:00:10]} 46. Qxb5 {[%emt 0:00:21]} Qg6 {[%emt 0:00:03]} 47. Qe2 {[%emt 0:00:15]} Bf6 {[%emt 0:00:10]} 48. c4 {[%emt 0:00:12]} Kg7 {[%emt 0:00:06]} 49. b4 {[%emt 0:00:04]} axb4 {[%emt 0:00:21]} 50. axb4 {[%emt 0:00:01]} h5 {[%emt 0:00:06]} 51. Be4 {[%emt 0:00:38]} Qh6 {[%emt 0:00:02]} 52. b5 {[%emt 0:00:01]} h4 {[%emt 0:00:07]} 53. g4 {[%emt 0:00:04]} Qh8 {[%emt 0:00:11]} 54. b6 {[%emt 0:00:15]} Qb8 {[%emt 0:00:07]} 55. b7 {[%emt 0:00:01]} Nd7 {[%emt 0:00:12]} 56. Bd5 {[%emt 0:00:07]} Qa7 {[%emt 0:00:30]} 57. Qe8 {[%emt 0:00:22]} 1-0

[Event "FIDE Women World Rapid 2024"]
[Site "New York"]
[Date "2024.12.27"]
[Round "7.26"]
[White "Melekhina, Alisa"]
[Black "Durrfeld, Sofie Bech"]
[Result "1-0"]
[ECO "B25"]
[WhiteElo "2176"]
[BlackElo "1952"]
[Annotator "ChessBase"]
[PlyCount "53"]
[EventDate "2024.12.14"]
[EventType "swiss"]
[EventCountry "USA"]
[SourceTitle "playchess.com"]
[Source "ChessBase"]
[SourceQuality "1"]
[TimeControl "900+10"]

1. e4 {[%emt 0:00:02]} c5 {[%emt 0:00:01]} 2. Nc3 {[%emt 0:00:02]} g6 {[%emt 0:00:01]} 3. g3 {[%emt 0:00:02]} Bg7 {[%emt 0:00:01]} 4. Bg2 {[%emt 0:00:01]} Nc6 {[%emt 0:00:01]} 5. d3 {[%emt 0:00:02]} Nf6 {[%emt 0:00:03]} 6. Nge2 {[%emt 0:00:50]} d6 {[%emt 0:00:11]} 7. O-O {[%emt 0:00:38]} Bd7 {[%emt 0:00:13]} 8. h3 {[%emt 0:00:19]} Rb8 {[%emt 0:00:12]} 9. Be3 {[%emt 0:00:07]} b5 {[%emt 0:00:14]} 10. Qd2 {[%emt 0:00:06]} b4 {[%emt 0:00:39]} 11. Nd1 {[%emt 0:00:16]} a5 {[%emt 0:01:32]} 12. Bh6 {[%emt 0:00:39]} O-O {[%emt 0:00:23]} 13. Bxg7 {[%emt 0:00:31]} Kxg7 {[%emt 0:00:02]} 14. Ne3 {[%emt 0:00:49]} Ne8 {[%emt 0:00:33]} 15. f4 {[%emt 0:03:05]} f5 {[%emt 0:00:31]} 16. exf5 {[%emt 0:00:16]} gxf5 {[%emt 0:00:01]} 17. d4 {[%emt 0:00:26]} e6 {[%emt 0:00:58]} 18. dxc5 {[%emt 0:00:20]} dxc5 {[%emt 0:00:03]} 19. Rad1 {[%emt 0:00:35]} Nf6 {[%emt 0:00:12]} 20. Nc4 {[%emt 0:00:32]} Be8 {[%emt 0:00:39]} 21. Qe3 {[%emt 0:00:45]} Qe7 {[%emt 0:00:37]} 22. Rd6 {[%emt 0:01:00]} Ne4 {[%emt 0:01:33]} 23. Bxe4 {[%emt 0:00:24]} fxe4 {[%emt 0:00:02]} 24. Qxe4 {[%emt 0:00:22]} Nd8 {[%emt 0:00:45]} 25. f5 {[%emt 0:00:59]} Rf6 {[%emt 0:00:25]} 26. Nf4 {[%emt 0:00:47]} e5 {[%emt 0:00:28]} 27. Nd5 {[%emt 0:00:56]} 1-0

[Event "FIDE Women World Rapid 2024"]
[Site "New York"]
[Date "2024.12.27"]
[Round "7.27"]
[White "Balajayeva, Khanim"]
[Black "Munguntuul, Batkhuyag"]
[Result "1-0"]
[ECO "B44"]
[WhiteElo "2362"]
[BlackElo "2342"]
[Annotator "ChessBase"]
[PlyCount "69"]
[EventDate "2024.12.14"]
[EventType "swiss"]
[EventCountry "USA"]
[SourceTitle "playchess.com"]
[Source "ChessBase"]
[SourceQuality "1"]
[TimeControl "900+10"]

1. e4 {[%emt 0:00:02]} c5 {[%emt 0:00:12]} 2. Nf3 {[%emt 0:00:02]} e6 {[%emt 0:00:01]} 3. d4 {[%emt 0:00:02]} cxd4 {[%emt 0:00:01]} 4. Nxd4 {[%emt 0:00:01]} Nc6 {[%emt 0:00:01]} 5. Bf4 {[%emt 0:00:08]} d6 {[%emt 0:00:38]} 6. Nxc6 {[%emt 0:00:02]} bxc6 {[%emt 0:00:02]} 7. Bd3 {[%emt 0:00:03]} e5 {[%emt 0:00:07]} 8. Be3 {[%emt 0:00:01]} Nf6 {[%emt 0:00:02]} 9. O-O {[%emt 0:00:11]} Be7 {[%emt 0:00:15]} 10. c4 {[%emt 0:00:02]} O-O {[%emt 0:00:23]} 11. Nc3 {[%emt 0:00:07]} Be6 {[%emt 0:00:16]} 12. b3 {[%emt 0:00:08]} Qc8 {[%emt 0:00:23]} 13. f3 {[%emt 0:00:48]} Bd8 {[%emt 0:00:10]} 14. Qe2 {[%emt 0:00:12]} Bb6 {[%emt 0:00:05]} 15. Rfd1 {[%emt 0:00:05]} Nd7 {[%emt 0:00:05]} 16. Bc2 {[%emt 0:00:08]} Qc7 {[%emt 0:00:09]} 17. Rd2 {[%emt 0:00:14]} Rad8 {[%emt 0:00:27]} 18. Rad1 {[%emt 0:00:36]} Ba5 {[%emt 0:00:12]} 19. Rd3 {[%emt 0:00:03]} Bb4 {[%emt 0:00:06]} 20. Na4 {[%emt 0:00:11]} f5 {[%emt 0:00:08]} 21. Bg5 {[%emt 0:00:47]} Rde8 {[%emt 0:00:01]} 22. Bd2 {[%emt 0:00:47]} Bc5+ {[%emt 0:00:49]} 23. Be3 {[%emt 0:00:44]} fxe4 {[%emt 0:01:27]} 24. fxe4 {[%emt 0:00:05]} Bxe3+ {[%emt 0:00:10]} 25. Qxe3 {[%emt 0:00:38]} Bg4 {[%emt 0:00:02]} 26. R1d2 {[%emt 0:00:04]} Rf6 {[%emt 0:00:03]} 27. h3 {[%emt 0:00:03]} Bh5 {[%emt 0:00:05]} 28. c5 {[%emt 0:03:46]} Nxc5 {[%emt 0:00:03]} 29. Nxc5 {[%emt 0:00:01]} dxc5 {[%emt 0:00:02]} 30. Rd7 {[%emt 0:00:01]} Qb6 {[%emt 0:01:44]} 31. Bd3 {[%emt 0:00:04]} Bf7 {[%emt 0:00:02]} 32. Rf2 {[%emt 0:02:28]} Rd8 {[%emt 0:00:02]} 33. Rxf7 {[%emt 0:02:20]} Rxd3 {[%emt 0:04:42]} 34. R7xf6 {[%emt 0:00:13]} Rd1+ {[%emt 0:02:28]} 35. Rf1 {[%emt 0:00:01]} 1-0